[Event "Senior Men Russian Championship 2022_1L"]
[Site "Olginka, Russia"]
[Date "2022.09.26"]
[Round "3.8"]
[White "Subbotin, Andrey"]
[Black "Nelyubin, Sergey"]
[Result "1/2-1/2"]
[TimeControl "90min/40moves+30min/end+30sec increment per move starting from move 1"]
[WhiteFideId "4196210"]
[BlackFideId "14110490"]
[WhiteElo "1775"]
[BlackElo "1987"]

1. d4 {[%clk 01:30:57]} {[%emt 00:00:01]} Nf6 {[%clk 01:30:42]} {[%emt
00:00:19]} 2. c4 {[%clk 01:31:24]} {[%emt 00:00:05]} g6 {[%clk 01:30:59]}
{[%emt 00:00:13]} 3. Nc3 {[%clk 01:31:45]} {[%emt 00:00:08]} Bg7 {[%clk
01:31:19]} {[%emt 00:00:10]} 4. e4 {[%clk 01:32:10]} {[%emt 00:00:05]} d6
{[%clk 01:31:39]} {[%emt 00:00:10]} 5. f3 {[%clk 01:32:35]} {[%emt 00:00:04]}
O-O {[%clk 01:31:32]} {[%emt 00:00:37]} 6. Be3 {[%clk 01:33:02]} {[%emt
00:00:03]} Nc6 {[%clk 01:31:15]} {[%emt 00:00:47]} 7. Nge2 {[%clk 01:33:23]}
{[%emt 00:00:08]} e5 {[%clk 01:30:48]} {[%emt 00:00:58]} 8. d5 {[%clk
01:33:49]} {[%emt 00:00:04]} Na5 {[%clk 01:29:45]} {[%emt 00:01:32]} 9. Nc1
{[%clk 01:30:26]} {[%emt 00:03:53]} b6 {[%clk 01:27:36]} {[%emt 00:02:40]} 10.
b4 {[%clk 01:30:47]} {[%emt 00:00:09]} Nb7 {[%clk 01:27:43]} {[%emt 00:00:24]}
11. Nb3 {[%clk 01:31:06]} {[%emt 00:00:11]} a5 {[%clk 01:26:54]} {[%emt
00:01:19]} 12. a3 {[%clk 01:31:34]} {[%emt 00:00:02]} Nh5 {[%clk 01:23:51]}
{[%emt 00:03:32]} 13. c5 {[%clk 01:23:46]} {[%emt 00:08:19]} bxc5 {[%clk
01:14:48]} {[%emt 00:09:33]} 14. bxc5 {[%clk 01:24:13]} {[%emt 00:00:04]} a4
{[%clk 01:13:59]} {[%emt 00:01:19]} 15. c6 {[%clk 01:22:54]} {[%emt 00:01:49]}
axb3 {[%clk 01:11:39]} {[%emt 00:02:51]} 16. cxb7 {[%clk 01:23:22]} {[%emt
00:00:02]} Bxb7 {[%clk 01:11:04]} {[%emt 00:01:05]} 17. Qxb3 {[%clk 01:23:51]}
{[%emt 00:00:02]} Bc8 {[%clk 01:02:43]} {[%emt 00:08:51]} 18. a4 {[%clk
01:20:57]} {[%emt 00:03:24]} f5 {[%clk 01:00:13]} {[%emt 00:03:00]} 19. a5
{[%clk 01:19:54]} {[%emt 00:01:34]} Bf6 {[%clk 00:54:58]} {[%emt 00:05:45]} 20.
a6 {[%clk 01:17:08]} {[%emt 00:03:17]} Bh4+ {[%clk 00:54:00]} {[%emt 00:01:27]}
21. Kd1 {[%clk 01:13:53]} {[%emt 00:03:45]} fxe4 {[%clk 00:49:21]} {[%emt
00:05:08]} 22. Nxe4 {[%clk 01:14:07]} {[%emt 00:00:17]} Bf5 {[%clk 00:48:27]}
{[%emt 00:01:24]} 23. a7 {[%clk 01:13:44]} {[%emt 00:00:53]} Bxe4 {[%clk
00:46:48]} {[%emt 00:02:09]} 24. fxe4 {[%clk 01:14:09]} {[%emt 00:00:05]} Bf2
{[%clk 00:46:46]} {[%emt 00:00:30]} 25. Be2 {[%clk 00:37:27]} {[%emt 00:37:15]}
Bxe3 {[%clk 00:42:21]} {[%emt 00:04:55]} 26. Qxe3 {[%clk 00:37:52]} {[%emt
00:00:05]} Nf4 {[%clk 00:25:25]} {[%emt 00:17:27]} 27. g3 {[%clk 00:29:35]}
{[%emt 00:08:48]} Nxe2 {[%clk 00:25:06]} {[%emt 00:00:49]} 28. Kxe2 {[%clk
00:29:23]} {[%emt 00:00:42]} Qd7 {[%clk 00:24:54]} {[%emt 00:00:42]} 29. Rhb1
{[%clk 00:24:27]} {[%emt 00:05:26]} Qh3 {[%clk 00:21:01]} {[%emt 00:04:22]} 30.
Rb7 {[%clk 00:14:40]} {[%emt 00:10:18]} Qg2+ {[%clk 00:18:43]} {[%emt
00:02:45]} 31. Kd3 {[%clk 00:15:05]} {[%emt 00:00:08]} Rac8 {[%clk 00:14:34]}
{[%emt 00:04:39]} 32. Rab1 {[%clk 00:09:57]} {[%emt 00:05:38]} Qa2 {[%clk
00:07:20]} {[%emt 00:07:42]} 33. R7b2 {[%clk 00:06:55]} {[%emt 00:03:34]} Qa6+
{[%clk 00:06:38]} {[%emt 00:01:11]} 34. Kd2 {[%clk 00:05:38]} {[%emt 00:01:47]}
Qa5+ {[%clk 00:05:59]} {[%emt 00:01:08]} 35. Ke2 {[%clk 00:04:40]} {[%emt
00:01:29]} Qa6+ {[%clk 00:05:58]} {[%emt 00:00:31]} 36. Kd2 {[%emt 00:00:50]}
1/2-1/2

[Event "Senior Men Russian Championship 2022_1L"]
[Site "Olginka, Russia"]
[Date "2022.09.27"]
[Round "4.2"]
[White "Kolomensky, Vladimir"]
[Black "Kurdakov, Yuri"]
[Result "1/2-1/2"]
[TimeControl "90min/40moves+30min/end+30sec increment per move starting from move 1"]
[WhiteTitle "FM"]
[BlackTitle "FM"]
[WhiteFideId "4123565"]
[BlackFideId "4120493"]
[WhiteElo "2055"]
[BlackElo "2085"]

1. e4 {[%clk 01:30:57]} {[%emt 00:00:01]} e6 {[%clk 01:30:53]} {[%emt
00:00:08]} 2. d4 {[%clk 01:31:08]} {[%emt 00:00:19]} d5 {[%clk 01:31:16]}
{[%emt 00:00:07]} 3. Nd2 {[%clk 01:31:20]} {[%emt 00:00:18]} a6 {[%clk
01:31:27]} {[%emt 00:00:19]} 4. Bd3 {[%clk 01:30:32]} {[%emt 00:01:17]} c5
{[%clk 01:31:49]} {[%emt 00:00:08]} 5. dxc5 {[%clk 01:30:29]} {[%emt 00:00:34]}
Bxc5 {[%clk 01:32:12]} {[%emt 00:00:07]} 6. Ngf3 {[%clk 01:30:42]} {[%emt
00:00:16]} Nf6 {[%clk 01:31:30]} {[%emt 00:01:13]} 7. Qe2 {[%clk 01:24:27]}
{[%emt 00:06:45]} Nc6 {[%clk 01:21:26]} {[%emt 00:10:35]} 8. O-O {[%clk
01:19:29]} {[%emt 00:05:28]} Qc7 {[%clk 01:18:04]} {[%emt 00:03:52]} 9. c3
{[%clk 01:13:44]} {[%emt 00:06:15]} Bd6 {[%clk 01:04:41]} {[%emt 00:13:53]} 10.
Re1 {[%clk 01:03:42]} {[%emt 00:10:31]} dxe4 {[%clk 01:03:52]} {[%emt
00:01:19]} 11. Nxe4 {[%clk 00:59:36]} {[%emt 00:04:36]} Nxe4 {[%clk 01:01:53]}
{[%emt 00:02:29]} 12. Qxe4 {[%clk 00:57:56]} {[%emt 00:02:10]} Bd7 {[%clk
00:54:59]} {[%emt 00:07:25]} 13. Qh4 {[%clk 00:51:01]} {[%emt 00:07:24]} Ne5
{[%clk 00:47:39]} {[%emt 00:07:50]} 14. Nxe5 {[%clk 00:34:55]} {[%emt
00:16:37]} Bxe5 {[%clk 00:47:48]} {[%emt 00:00:21]} 15. Bg5 {[%clk 00:35:15]}
{[%emt 00:00:10]} h6 {[%clk 00:42:28]} {[%emt 00:05:51]} 16. Be3 {[%clk
00:26:35]} {[%emt 00:09:10]} Bc6 {[%clk 00:36:04]} {[%emt 00:06:54]} 17. f4
{[%clk 00:25:14]} {[%emt 00:01:51]} Bf6 {[%clk 00:36:09]} {[%emt 00:00:25]} 18.
Qf2 {[%clk 00:25:31]} {[%emt 00:00:12]} O-O {[%clk 00:23:43]} {[%emt 00:12:56]}
19. Bb6 {[%clk 00:23:46]} {[%emt 00:02:16]} Qc8 {[%clk 00:24:12]} {[%emt
00:00:01]} 20. Rad1 {[%clk 00:22:45]} {[%emt 00:01:30]} Re8 {[%clk 00:23:26]}
{[%emt 00:01:17]} 21. Re2 {[%clk 00:09:37]} {[%emt 00:13:38]} e5 {[%clk
00:16:17]} {[%emt 00:07:39]} 22. fxe5 {[%clk 00:09:39]} {[%emt 00:00:28]} Rxe5
{[%clk 00:16:24]} {[%emt 00:00:24]} 23. Rxe5 {[%clk 00:09:28]} {[%emt
00:00:40]} Bxe5 {[%clk 00:16:52]} {[%emt 00:00:02]} 24. Bc4 {[%clk 00:08:43]}
{[%emt 00:01:15]} Bf6 {[%clk 00:15:21]} {[%emt 00:02:01]} 25. Bd4 {[%clk
00:03:37]} {[%emt 00:05:36]} Qd7 {[%clk 00:12:17]} {[%emt 00:03:34]} 26. Bb3
{[%clk 00:04:05]} {[%emt 00:00:02]} Bxd4 {[%clk 00:12:40]} {[%emt 00:00:07]} 27.
Rxd4 {[%clk 00:03:08]} {[%emt 00:01:27]} Qe7 {[%clk 00:13:03]} {[%emt
00:00:07]} 28. Rf4 {[%clk 00:03:18]} {[%emt 00:00:20]} Rf8 {[%clk 00:11:25]}
{[%emt 00:02:07]} 29. h4 {[%clk 00:03:28]} {[%emt 00:00:20]} Bd7 {[%clk
00:09:12]} {[%emt 00:02:44]} 30. Bd5 {[%clk 00:02:07]} {[%emt 00:01:51]} Be6
{[%clk 00:08:05]} {[%emt 00:01:37]} 31. Qe3 {[%clk 00:02:08]} {[%emt 00:00:30]}
Qd7 {[%clk 00:06:40]} {[%emt 00:01:55]} 32. Bxe6 {[%clk 00:02:07]} {[%emt
00:00:30]} fxe6 {[%clk 00:07:03]} {[%emt 00:00:07]} 33. Rxf8+ {[%clk 00:01:45]}
{[%emt 00:00:52]} Kxf8 {[%clk 00:07:32]} 34. Qf4+ {[%clk 00:01:29]} {[%emt
00:00:46]} Kg8 {[%clk 00:07:55]} {[%emt 00:00:07]} 35. Qe5 {[%clk 00:01:31]}
{[%emt 00:00:28]} Kf7 {[%clk 00:07:34]} {[%emt 00:00:51]} 36. Qf4+ {[%clk
00:01:43]} {[%emt 00:00:18]} Kg8 {[%clk 00:08:03]} 37. Qe5 {[%clk 00:02:03]}
{[%emt 00:00:10]} Kf7 {[%clk 00:08:29]} {[%emt 00:00:03]} 1/2-1/2

[Event "Senior Men Russian Championship 2022_1L"]
[Site "Olginka, Russia"]
[Date "2022.09.27"]
[Round "4.3"]
[White "Kremenietsky, Anatoly M."]
[Black "Kovalev, Evgeny"]
[Result "0-1"]
[TimeControl "90min/40moves+30min/end+30sec increment per move starting from move 1"]
[WhiteTitle "IM"]
[WhiteFideId "4103467"]
[WhiteElo "2241"]
[BlackElo "2048"]

1. d4 {[%clk 01:28:15]} {[%emt 00:02:45]} Nf6 {[%clk 01:30:48]} {[%emt
00:00:13]} 2. c4 {[%clk 01:28:33]} {[%emt 00:00:11]} g6 {[%clk 01:31:05]}
{[%emt 00:00:13]} 3. Nc3 {[%clk 01:28:52]} {[%emt 00:00:10]} d5 {[%clk
01:31:28]} {[%emt 00:00:08]} 4. Nf3 {[%clk 01:28:49]} {[%emt 00:00:33]} Bg7
{[%clk 01:31:51]} {[%emt 00:00:08]} 5. Bg5 {[%clk 01:28:39]} {[%emt 00:00:40]}
Ne4 {[%clk 01:32:06]} {[%emt 00:00:16]} 6. cxd5 {[%clk 01:28:07]} {[%emt
00:01:02]} Nxg5 {[%clk 01:31:07]} {[%emt 00:01:29]} 7. Nxg5 {[%clk 01:28:34]}
{[%emt 00:00:02]} e6 {[%clk 01:31:07]} {[%emt 00:00:30]} 8. Qa4+ {[%clk
01:13:52]} {[%emt 00:15:13]} Bd7 {[%clk 01:28:31]} {[%emt 00:03:06]} 9. Qb3
{[%clk 01:14:13]} {[%emt 00:00:08]} Qxg5 {[%clk 01:21:51]} {[%emt 00:07:10]} 10.
Qxb7 {[%clk 01:14:34]} {[%emt 00:00:09]} Bxd4 {[%clk 01:21:12]} {[%emt
00:01:10]} 11. Qxa8 {[%clk 01:06:27]} {[%emt 00:08:38]} O-O {[%clk 01:20:34]}
{[%emt 00:01:08]} 12. Rd1 {[%clk 00:52:09]} {[%emt 00:14:47]} Qf6 {[%clk
01:16:42]} {[%emt 00:04:22]} 13. Rxd4 {[%clk 00:52:07]} {[%emt 00:00:31]} Qxd4
{[%clk 01:16:46]} {[%emt 00:00:27]} 14. Qb7 {[%clk 00:52:35]} {[%emt 00:00:02]}
c6 {[%clk 01:10:27]} {[%emt 00:06:49]} 15. e3 {[%clk 00:50:36]} {[%emt
00:02:28]} Qc5 {[%clk 01:10:34]} {[%emt 00:00:23]} 16. dxe6 {[%clk 00:49:44]}
{[%emt 00:01:24]} Bxe6 {[%clk 01:09:39]} {[%emt 00:01:25]} 17. Be2 {[%clk
00:45:13]} {[%emt 00:04:57]} Nd7 {[%clk 01:09:10]} {[%emt 00:01:01]} 18. O-O
{[%clk 00:45:18]} {[%emt 00:00:26]} Rb8 {[%clk 00:57:43]} {[%emt 00:11:56]} 19.
Qc7 {[%emt 00:01:57]} Rb4 {[%clk 00:49:40]} {[%emt 00:08:29]} 20. a3 {[%clk
00:40:20]} {[%emt 00:04:06]} Rb3 {[%clk 00:46:54]} {[%emt 00:03:15]} 21. Na4
{[%clk 00:22:50]} {[%emt 00:18:00]} Qg5 {[%clk 00:44:37]} {[%emt 00:02:46]} 22.
Rd1 {[%clk 00:17:44]} {[%emt 00:05:37]} Bd5 {[%clk 00:39:23]} {[%emt 00:05:44]}
23. Qg3 {[%clk 00:17:40]} {[%emt 00:00:34]} Qf5 {[%clk 00:37:12]} {[%emt
00:02:42]} 24. Rc1 {[%clk 00:14:14]} {[%emt 00:03:56]} Nb6 {[%clk 00:36:15]}
{[%emt 00:01:26]} 25. Nc3 {[%clk 00:12:00]} {[%emt 00:02:44]} Rxb2 {[%clk
00:34:24]} {[%emt 00:02:22]} 26. Nxd5 {[%clk 00:12:06]} {[%emt 00:00:23]} cxd5
{[%clk 00:33:07]} {[%emt 00:01:46]} 27. Bf1 {[%clk 00:03:51]} {[%emt 00:08:45]}
h5 {[%clk 00:29:38]} {[%emt 00:03:59]} 28. Rc7 {[%clk 00:02:54]} {[%emt
00:01:27]} Rb1 {[%clk 00:29:03]} {[%emt 00:01:06]} 29. e4 {[%clk 00:01:57]}
{[%emt 00:01:27]} dxe4 {[%clk 00:27:11]} {[%emt 00:02:22]} 30. Rxa7 {[%clk
00:02:03]} {[%emt 00:00:24]} Qb5 {[%clk 00:26:27]} {[%emt 00:01:14]} 0-1

[Event "Senior Men Russian Championship 2022_1L"]
[Site "Olginka, Russia"]
[Date "2022.09.27"]
[Round "4.4"]
[White "Kiriushin, Vladimir"]
[Black "Pak, Kil En"]
[Result "1-0"]
[TimeControl "90min/40moves+30min/end+30sec increment per move starting from move 1"]
[WhiteFideId "4150848"]
[BlackFideId "4131959"]
[WhiteElo "1954"]
[BlackElo "2207"]

1. c4 {[%clk 01:30:58]} {[%emt 00:00:02]} e6 {[%clk 01:30:52]} {[%emt
00:00:08]} 2. Nc3 {[%clk 01:31:24]} {[%emt 00:00:04]} d5 {[%clk 01:31:16]}
{[%emt 00:00:06]} 3. d4 {[%clk 01:31:23]} {[%emt 00:00:31]} Nf6 {[%clk
01:31:40]} {[%emt 00:00:06]} 4. e3 {[%clk 01:31:35]} {[%emt 00:00:19]} Nbd7
{[%clk 01:31:57]} {[%emt 00:00:14]} 5. Nf3 {[%clk 01:31:27]} {[%emt 00:00:37]}
Be7 {[%clk 01:32:17]} {[%emt 00:00:09]} 6. Bd2 {[%clk 01:31:34]} {[%emt
00:00:23]} O-O {[%clk 01:32:34]} {[%emt 00:00:14]} 7. b3 {[%clk 01:31:56]}
{[%emt 00:00:08]} Re8 {[%clk 01:26:44]} {[%emt 00:06:20]} 8. Bd3 {[%clk
01:31:54]} {[%emt 00:00:32]} dxc4 {[%clk 01:26:56]} {[%emt 00:00:19]} 9. bxc4
{[%clk 01:32:16]} {[%emt 00:00:08]} c5 {[%clk 01:27:10]} {[%emt 00:00:16]} 10.
O-O {[%clk 01:32:11]} {[%emt 00:00:34]} cxd4 {[%emt 00:00:14]} 11. exd4 {[%clk
01:32:32]} {[%emt 00:00:08]} b6 {[%clk 01:27:49]} {[%emt 00:00:08]} 12. Qc2
{[%clk 01:30:19]} {[%emt 00:02:43]} Bb7 {[%clk 01:27:11]} {[%emt 00:01:08]} 13.
Ne5 {[%clk 01:13:17]} {[%emt 00:17:31]} h6 {[%clk 01:26:01]} {[%emt 00:01:40]}
14. Rad1 {[%clk 01:09:33]} {[%emt 00:04:14]} Nxe5 {[%clk 01:20:40]} {[%emt
00:05:52]} 15. dxe5 {[%clk 01:10:01]} {[%emt 00:00:02]} Nd7 {[%clk 01:20:59]}
{[%emt 00:00:11]} 16. Bf4 {[%clk 01:08:53]} {[%emt 00:01:37]} Qc7 {[%clk
01:17:17]} {[%emt 00:04:12]} 17. Rfe1 {[%clk 01:07:11]} {[%emt 00:02:12]} a6
{[%clk 01:14:59]} {[%emt 00:02:49]} 18. Qe2 {[%clk 01:01:39]} {[%emt 00:06:01]}
Nc5 {[%clk 01:07:16]} {[%emt 00:08:14]} 19. Bb1 {[%clk 01:01:38]} {[%emt
00:00:31]} Bf8 {[%clk 01:05:28]} {[%emt 00:02:18]} 20. Qg4 {[%clk 00:59:24]}
{[%emt 00:02:43]} Kh8 {[%clk 00:59:35]} {[%emt 00:06:24]} 21. Re3 {[%clk
00:55:34]} {[%emt 00:04:20]} Rad8 {[%clk 00:57:35]} {[%emt 00:02:31]} 22. Rg3
{[%clk 00:49:49]} {[%emt 00:06:14]} Rxd1+ {[%clk 00:57:33]} {[%emt 00:00:33]}
23. Nxd1 {[%clk 00:50:12]} {[%emt 00:00:07]} Rd8 {[%clk 00:56:15]} {[%emt
00:01:48]} 24. Bxh6 {[%clk 00:47:58]} {[%emt 00:02:44]} Rxd1+ {[%clk 00:48:33]}
{[%emt 00:08:13]} 25. Qxd1 {[%clk 00:48:26]} {[%emt 00:00:02]} Qxe5 {[%clk
00:48:38]} {[%emt 00:00:26]} 26. Bxg7+ {[%clk 00:47:59]} {[%emt 00:00:57]} 1-0

[Event "Senior Men Russian Championship 2022_1L"]
[Site "Olginka, Russia"]
[Date "2022.09.27"]
[Round "4.5"]
[White "Birjukov, Sergey"]
[Black "Piankov, Evgenij"]
[Result "0-1"]
[TimeControl "90min/40moves+30min/end+30sec increment per move starting from move 1"]
[WhiteTitle "FM"]
[BlackTitle "IM"]
[BlackFideId "14100525"]
[WhiteElo "1867"]
[BlackElo "2165"]

1. d4 {[%clk 01:30:54]} {[%emt 00:00:05]} d5 {[%clk 01:30:46]} {[%emt
00:00:14]} 2. Nf3 {[%clk 01:30:37]} {[%emt 00:00:46]} e6 {[%clk 01:30:42]}
{[%emt 00:00:35]} 3. Bf4 {[%clk 01:30:08]} {[%emt 00:00:57]} f5 {[%clk
01:29:22]} {[%emt 00:01:51]} 4. e3 {[%clk 01:29:43]} {[%emt 00:00:55]} Nf6
{[%clk 01:29:43]} {[%emt 00:00:10]} 5. Bd3 {[%clk 01:26:45]} {[%emt 00:03:28]}
Be7 {[%clk 01:29:44]} {[%emt 00:00:29]} 6. Nbd2 {[%clk 01:24:24]} {[%emt
00:02:50]} O-O {[%clk 01:29:56]} {[%emt 00:00:18]} 7. Ne5 {[%clk 01:23:43]}
{[%emt 00:01:11]} c5 {[%clk 01:24:41]} {[%emt 00:05:46]} 8. c3 {[%clk
01:22:50]} {[%emt 00:01:23]} Nc6 {[%clk 01:24:48]} {[%emt 00:00:23]} 9. Ndf3
{[%clk 01:21:54]} {[%emt 00:01:25]} Bd7 {[%clk 01:19:42]} {[%emt 00:05:37]} 10.
O-O {[%clk 01:19:55]} {[%emt 00:02:29]} Ne4 {[%clk 01:18:37]} {[%emt 00:01:34]}
11. Nxd7 {[%clk 01:14:46]} {[%emt 00:05:37]} Qxd7 {[%clk 01:18:43]} {[%emt
00:00:26]} 12. Ne5 {[%clk 01:15:02]} {[%emt 00:00:13]} Nxe5 {[%clk 01:18:38]}
{[%emt 00:00:36]} 13. Bxe5 {[%clk 01:14:56]} {[%emt 00:00:35]} Rac8 {[%clk
01:16:10]} {[%emt 00:02:59]} 14. f3 {[%clk 01:13:23]} {[%emt 00:02:03]} Nd6
{[%clk 01:13:44]} {[%emt 00:02:56]} 15. Qe2 {[%clk 01:09:04]} {[%emt 00:04:48]}
Nf7 {[%clk 01:11:54]} {[%emt 00:02:21]} 16. Bg3 {[%clk 01:06:05]} {[%emt
00:03:28]} Bd6 {[%clk 01:05:20]} {[%emt 00:07:06]} 17. Bxd6 {[%clk 01:04:22]}
{[%emt 00:02:15]} Nxd6 {[%clk 01:05:28]} {[%emt 00:00:21]} 18. Rad1 {[%clk
01:00:54]} {[%emt 00:03:57]} Qc6 {[%clk 01:00:20]} {[%emt 00:05:39]} 19. Rfe1
{[%clk 00:59:22]} {[%emt 00:02:02]} a6 {[%clk 00:52:46]} {[%emt 00:08:05]} 20.
Rd2 {[%clk 00:57:51]} {[%emt 00:01:59]} Qb6 {[%clk 00:43:57]} {[%emt 00:09:18]}
21. Qf2 {[%clk 00:57:16]} {[%emt 00:01:05]} Ne4 {[%clk 00:40:16]} {[%emt
00:04:13]} 22. Bxe4 {[%clk 00:50:29]} {[%emt 00:07:16]} fxe4 {[%clk 00:40:22]}
{[%emt 00:00:24]} 23. f4 {[%clk 00:45:43]} {[%emt 00:05:16]} cxd4 {[%clk
00:40:34]} {[%emt 00:00:19]} 24. Rxd4 {[%clk 00:40:18]} {[%emt 00:05:53]} Qa5
{[%clk 00:36:09]} {[%emt 00:04:56]} 25. a3 {[%clk 00:39:01]} {[%emt 00:01:45]}
b5 {[%clk 00:36:02]} {[%emt 00:00:40]} 26. Qd2 {[%clk 00:31:47]} {[%emt
00:07:43]} Qb6 {[%clk 00:34:50]} {[%emt 00:01:43]} 27. a4 {[%clk 00:27:09]}
{[%emt 00:05:08]} Rc4 {[%clk 00:34:47]} {[%emt 00:00:32]} 28. axb5 {[%clk
00:26:04]} {[%emt 00:01:35]} axb5 {[%clk 00:34:49]} {[%emt 00:00:29]} 29. Ra1
{[%clk 00:23:12]} {[%emt 00:03:20]} Rfc8 {[%clk 00:32:26]} {[%emt 00:02:55]} 30.
Rxc4 {[%clk 00:21:06]} {[%emt 00:02:37]} bxc4 {[%clk 00:32:34]} {[%emt
00:00:22]} 31. f5 {[%clk 00:20:58]} {[%emt 00:00:38]} d4 {[%clk 00:30:47]}
{[%emt 00:02:17]} 32. Qxd4 {[%clk 00:18:53]} {[%emt 00:02:33]} Qxd4 {[%clk
00:30:46]} {[%emt 00:00:32]} 33. cxd4 {[%clk 00:18:43]} {[%emt 00:00:39]} exf5
{[%clk 00:31:14]} {[%emt 00:00:03]} 34. Rc1 {[%clk 00:14:12]} {[%emt 00:05:00]}
Kf7 {[%clk 00:31:03]} {[%emt 00:00:41]} 35. Rc3 {[%clk 00:14:32]} {[%emt
00:00:10]} Rb8 {[%clk 00:30:43]} {[%emt 00:00:51]} 36. Rxc4 {[%clk 00:14:46]}
{[%emt 00:00:16]} Rxb2 {[%clk 00:31:12]} {[%emt 00:00:02]} 37. Rc3 {[%clk
00:13:46]} {[%emt 00:01:29]} h6 {[%clk 00:29:13]} {[%emt 00:02:29]} 38. h4
{[%clk 00:13:35]} {[%emt 00:00:38]} Kg6 {[%clk 00:28:57]} {[%emt 00:00:49]} 39.
Kh2 {[%clk 00:13:33]} {[%emt 00:00:30]} Kh5 {[%clk 00:25:38]} {[%emt 00:03:52]}
40. Kg3 {[%clk 00:37:08]} {[%emt 00:06:55]} g6 {[%clk 00:54:48]} {[%emt
00:01:20]} 41. Rc1 {[%clk 00:30:27]} {[%emt 00:07:09]} g5 {[%clk 00:48:47]}
{[%emt 00:06:33]} 42. hxg5 {[%clk 00:30:33]} {[%emt 00:00:24]} hxg5 {[%clk
00:48:25]} {[%emt 00:00:52]} 43. Rc5 {[%clk 00:25:59]} {[%emt 00:05:04]} Rb3
{[%clk 00:48:10]} {[%emt 00:00:45]} 44. Rxf5 {[%clk 00:23:54]} {[%emt
00:02:32]} Rxe3+ {[%clk 00:48:34]} {[%emt 00:00:10]} 45. Kf2 {[%clk 00:23:32]}
{[%emt 00:00:50]} Rd3 {[%clk 00:49:03]} {[%emt 00:00:02]} 46. Rd5 {[%clk
00:22:06]} {[%emt 00:01:55]} Kg4 {[%clk 00:49:16]} {[%emt 00:00:18]} 47. Rd8
{[%clk 00:21:27]} {[%emt 00:01:09]} Kf4 {[%clk 00:48:52]} {[%emt 00:00:52]} 48.
Rf8+ {[%clk 00:21:27]} {[%emt 00:00:31]} Kg4 {[%clk 00:49:14]} {[%emt
00:00:09]} 49. Rd8 {[%clk 00:21:47]} {[%emt 00:00:10]} Kf5 {[%clk 00:49:32]}
{[%emt 00:00:11]} 50. Ke2 {[%clk 00:20:22]} {[%emt 00:01:55]} Rg3 {[%clk
00:49:40]} {[%emt 00:00:22]} 51. Kf2 {[%clk 00:19:06]} {[%emt 00:01:45]} Ra3
{[%clk 00:50:01]} {[%emt 00:00:11]} 52. Rf8+ {[%clk 00:18:30]} {[%emt
00:01:06]} Ke6 {[%clk 00:50:18]} {[%emt 00:00:12]} 53. Rg8 {[%clk 00:18:03]}
{[%emt 00:00:55]} Kd5 {[%clk 00:50:13]} {[%emt 00:00:38]} 54. Rd8+ {[%clk
00:17:10]} {[%emt 00:01:23]} Kc4 {[%clk 00:50:14]} {[%emt 00:00:30]} 55. d5
{[%clk 00:17:21]} {[%emt 00:00:18]} g4 {[%clk 00:48:32]} {[%emt 00:02:12]} 56.
g3 {[%clk 00:16:47]} {[%emt 00:01:03]} Kd3 {[%clk 00:48:13]} {[%emt 00:00:49]}
57. Rb8 {[%clk 00:10:37]} {[%emt 00:06:39]} e3+ {[%clk 00:48:22]} {[%emt
00:00:22]} 58. Kg2 {[%clk 00:10:27]} {[%emt 00:00:34]} Ra2+ {[%clk 00:48:18]}
{[%emt 00:00:40]} 59. Kg1 {[%clk 00:10:38]} {[%emt 00:00:18]} Ra1+ {[%clk
00:48:05]} {[%emt 00:00:44]} 60. Kg2 {[%clk 00:11:05]} {[%emt 00:00:02]} e2
{[%clk 00:47:45]} {[%emt 00:00:50]} 61. Rb3+ {[%clk 00:10:26]} {[%emt
00:01:07]} Kd4 {[%clk 00:47:12]} {[%emt 00:01:05]} 0-1